bitfinex/quotes_ETHUSD_20250414
["timestamp","ask_amount","ask_price","bid_price","bid_amount"]
[1744597953458,4.86441,1644.6,1644.1,6.12025252]
[1744597953696,5.351311,1644.5,1644.1,6.12025252]
[1744597954194,0.486441,1644.5,1644.1,1.31519629]
[1744597954491,0.486441,1644.5,1644.1,0.7985]
[1744597954492,5.351171,1644.5,1644.1,0.7985]
[1744597954990,0.486441,1644.5,1644.1,5.66424]
[1744597955168,9.8,1644.9,1644.5,4.86454]
[1744597955378,57.06017,1645.4,1644.9,4.86336]
[1744597955584,0.02,1645.4,1645.0,4.92395075]
[1744597955803,0.02,1645.4,1644.7,4.8641]
[1744597955986,4.8625,1645.3,1644.8,4.8638]
[1744597956158,1.07878,1645.4,1644.7,4.86407]
[1744597956159,1.07878,1645.4,1645.0,5.63887]
[1744597956362,1.07878,1645.4,1645.0,0.7758]
[1744597956661,5.94099,1645.4,1645.0,5.639]
[1744597956866,0.02,1645.4,1645.0,0.7758]
[1744597957509,0.02,1645.4,1645.3,4.86233]
[1744597957669,0.02,1645.4,1645.3,5.63813]
[1744597957873,0.02,1645.4,1645.3,9.24888942]
[1744597958199,5.6269,1646.4,1645.3,9.24888942]
[1744597958200,0.76781,1646.4,1645.9,0.7758]
[1744597958504,1e-05,1646.4,1646.2,9.18547]
[1744597958703,1e-05,1646.4,1646.2,10.039992]
[1744597958889,1e-05,1646.4,1646.2,1.22993922]
[1744597959090,1e-05,1646.4,1646.3,6.18518]
[1744597959403,0.005,1646.5,1646.4,5.63488]
[1744597959569,0.005,1646.5,1646.4,6.18488]
[1744597959766,0.005,1646.5,1646.4,0.7758]
[1744597959966,0.005,1646.5,1646.4,7.234336]
[1744597960280,0.005,1646.5,1646.4,9.684336]
[1744597960798,0.4004475,1646.9,1646.8,5.6337]
[1744597961187,0.4004475,1646.9,1646.5,0.7758]
[1744597961375,5.2580575,1646.9,1646.5,0.83652052]
[1744597961579,0.4004475,1646.9,1646.5,0.7758]
[1744597961877,4.85812,1646.8,1646.5,0.7758]
[1744597962076,0.92623825,1646.9,1646.2,8.31380922]
[1744597962077,4.85921,1646.4,1646.2,0.7758]
[1744597962282,0.7678,1646.7,1646.2,0.7758]
[1744597962283,4.85885,1646.5,1646.2,0.7758]
[1744597962671,4.85924,1646.4,1645.9,5.6363]
[1744597963002,4.85969,1646.2,1645.9,0.7758]
[1744597963185,4.86021,1646.1,1645.6,5.6372]
[1744597963381,6.113479,1646.2,1645.6,0.7758]
[1744597963609,4.86042,1646.0,1645.6,0.7758]
[1744597963771,4.86017,1646.1,1645.6,0.7758]
[1744597963972,4.85909,1646.4,1645.6,0.7758]
[1744597964220,4.85909,1646.4,1645.9,4.8605]
[1744597964425,67.5486,1646.5,1646.0,4.86022]
[1744597964644,4.8588,1646.5,1646.0,5.63604]
[1744597964789,0.4004475,1646.9,1646.4,4.85888]
[1744597964994,0.4004475,1646.9,1646.5,0.06072243]
[1744597965193,5.2581275,1646.9,1646.5,0.7758]
[1744597965443,5.2581275,1646.9,1646.8,6.1837]
[1744597965444,0.4004475,1646.9,1646.8,6.1837]
[1744597965740,0.4004475,1646.9,1646.8,5.6337]
[1744597965944,15.02,1647.4,1646.9,8.40761]
[1744597966090,15.02,1647.4,1647.3,4.85643]
[1744597966291,15.02,1647.4,1647.0,0.7758]
[1744597966525,4.8566,1647.3,1647.0,0.7758]
[1744597966834,4.85649,1647.3,1647.0,0.7758]
[1744597967045,4.8566,1647.3,1647.0,0.7758]
[1744597967243,4.85724,1647.1,1646.6,5.63429]
[1744597967423,20.64394,1647.4,1646.8,4.85774]
[1744597967424,15.7878,1647.4,1646.8,4.85774]
[1744597967624,4.85668,1647.3,1646.8,4.85774]
[1744597967831,15.02,1647.4,1646.7,4.85818]
[1744597967995,15.02,1647.4,1647.1,5.63279]
[1744597968201,19.87636,1647.4,1647.1,0.7758]
[1744597968407,4.85692,1647.2,1646.8,0.7758]
[1744597968641,4.85657,1647.3,1646.8,5.63355]
[1744597968844,4.85657,1647.3,1646.8,5.63347]
[1744597968999,4.85657,1647.3,1646.8,5.63355]
[1744597969199,21.863786,1647.4,1646.8,0.7758]
[1744597969200,4.85719,1647.1,1646.8,0.7758]
[1744597969400,9.788,1647.2,1646.9,0.06071447]
[1744597969600,9.788,1647.2,1646.8,5.63347]
[1744597969831,9.788,1647.2,1646.8,0.7758]
[1744597970037,15.02,1647.4,1647.0,4.85706]
[1744597970248,15.02,1647.4,1647.2,5.63373]
[1744597970462,15.02,1647.4,1647.3,4.85643]
[1744597970603,0.005,1648.0,1647.9,4.85466]
[1744597970805,0.005,1648.0,1647.9,5.63186]
[1744597971104,0.005,1648.0,1647.5,4.85583]
[1744597971299,0.005,1648.0,1647.7,5.30109734]
[1744597971501,0.005,1648.0,1647.8,4.85472]
[1744597971702,0.005,1648.0,1647.7,0.44596734]
[1744597971936,0.005,1648.0,1647.7,5.30097734]
[1744597972101,0.005,1648.0,1647.7,4.85501]
[1744597972304,0.005,1648.0,1647.7,0.55]
[1744597972518,0.005,1648.0,1647.9,6.18186]
[1744597972918,0.005,1648.0,1647.9,5.63186]
[1744597973842,0.005,1648.0,1647.9,6.18186]
[1744597974143,0.005,1648.0,1647.9,5.63186]
[1744597974313,0.005,1648.0,1647.9,5.69252035]
[1744597974515,0.005,1648.0,1647.9,6.24252035]
[1744597974820,5.16638176,1649.6,1649.1,4.85095]
[1744597975018,4.84936,1649.8,1649.2,4.91145909]
[1744597975218,4.81952,1649.7,1649.2,0.06062909]
[1744597975540,11.2212,1649.9,1648.6,3.0]
[1744597975743,11.2212,1649.9,1648.8,1.0403]
[1744597975744,0.8182,1649.9,1648.8,1.0403]
[1744597975947,0.8182,1649.9,1648.8,3.7772]
[1744597976105,4.84895,1649.9,1649.4,0.7772]
[1744597976313,0.8810665,1649.9,1649.5,0.06061066]
[1744597976635,5.7300865,1649.9,1649.0,0.7772]
[1744597976833,4.85045,1649.4,1649.0,0.7772]
[1744597977148,4.85097,1649.2,1649.0,0.7772]
[1744597977347,4.851,1649.2,1648.6,4.85244]
[1744597977513,4.85055,1649.3,1648.8,4.8518]
[1744597977713,4.85062,1649.3,1648.7,5.62949]
[1744597977916,0.7810665,1649.4,1649.3,5.62774]
[1744597978217,1.73826,1650.0,1649.7,4.84934]
[1744597978407,1.73826,1650.0,1649.4,8.40023]
[1744597978613,1.73826,1650.0,1649.9,4.84877]
[1744597978811,1.73826,1650.0,1649.7,4.84917]
[1744597979044,1.73826,1650.0,1649.4,11.35160566]
[1744597979219,4.84891,1649.9,1649.5,0.7772]
[1744597979419,0.658717,1649.9,1649.6,0.06060739]
[1744597979641,4.84878,1649.9,1649.4,4.8502]
[1744597979817,10.777,1649.9,1649.2,0.7772]
[1744597980017,4.85265,1648.6,1648.2,0.7772]
[1744597980217,4.85303,1648.5,1648.2,0.7772]
[1744597980439,52.03,1649.0,1648.3,4.85329]
[1744597980639,0.8182,1649.3,1648.4,3.50161566]
[1744597980945,4.85083,1649.2,1648.5,0.7772]
[1744597981166,4.85083,1649.2,1648.6,4.85232]
[1744597981167,10.777,1649.2,1648.6,4.85232]
[1744597981456,52.03,1649.7,1648.6,4.85232]
[1744597981457,1.73826,1650.0,1649.5,0.7772]
[1744597981666,1.73826,1650.0,1649.8,4.84891]
[1744597981945,1.73826,1650.0,1649.7,4.84936]
[1744597982148,1.73826,1650.0,1649.9,4.84877]
[1744597982464,1.73826,1650.0,1649.9,0.7772]
[1744597982767,0.3947632,1650.2,1649.9,0.7772]
[1744597982768,0.3947632,1650.2,1650.1,5.39819]
[1744597983070,0.02,1650.4,1650.3,5.6722]
[1744597983222,0.02,1650.4,1650.3,6.2222]
[1744597983412,0.13283851,1651.2,1650.8,4.84594]
[1744597983615,4.84623,1650.8,1650.3,1.01383397]
[1744597983853,4.84584,1650.9,1650.3,1.01383397]
[1744597984149,4.8473,1650.4,1650.3,0.18923397]
[1744597984336,5.05838462,1650.4,1650.3,0.18923397]
[1744597984516,4.8476,1650.3,1649.9,0.8284]
[1744597984846,0.1438244,1650.2,1649.9,0.8284]
[1744597985047,0.1438244,1650.2,1650.1,12.72820566]
[1744597985260,4.84526,1651.1,1650.6,5.67486]
[1744597985415,0.13283851,1651.2,1650.9,4.84562]
[1744597985615,0.13283851,1651.2,1651.1,6.22365]
[1744597985812,0.13283851,1651.2,1651.1,9.85207061]
[1744597986012,4.97791851,1651.2,1650.7,0.8284]
[1744597986215,4.84573,1651.0,1650.7,0.8284]
[1744597986469,0.0641841,1650.9,1650.4,0.8284]
[1744597986774,0.8171841,1650.9,1650.0,0.8284]
[1744597986926,4.84735,1650.4,1650.0,0.8284]
[1744597987130,4.84735,1650.4,1650.1,0.06058883]
[1744597987332,9.69494,1650.4,1650.1,0.06058883]
[1744597987651,4.9117841,1650.3,1649.6,0.8284]
[1744597987957,4.84806,1650.2,1649.7,4.84936]
[1744597988164,4.84762,1650.3,1649.8,4.84882]
[1744597988325,0.0641841,1650.6,1649.6,0.8284]
[1744597988654,0.0641841,1650.6,1649.0,4.85142]
[1744597988655,4.85071,1649.3,1648.9,4.33001566]
[1744597988962,4.85071,1649.3,1648.9,0.8284]
[1744597989275,4.85138,1649.1,1648.4,0.8284]
[1744597989424,5.60372,1649.3,1648.5,0.06064197]
[1744597989626,55.194,1650.0,1648.5,0.06064197]
[1744597989627,0.0641841,1649.6,1649.0,4.85123]
[1744597989831,0.8171841,1649.8,1649.0,0.8284]
[1744597990062,4.84951,1649.7,1649.2,4.85069]
[1744597990264,4.84951,1649.7,1649.1,4.85096]
[1744597990561,0.0641841,1649.8,1649.2,3.0]
[1744597990764,0.56638041,1650.6,1649.9,4.84862]
[1744597990765,5.60033,1650.4,1649.9,4.84862]
[1744597990964,5.60033,1650.4,1650.0,4.84844]
[1744597990965,0.753,1650.4,1650.0,4.84844]
[1744597991164,4.84755,1650.4,1649.8,5.67746]
[1744597991366,4.84755,1650.4,1649.8,0.8284]
[1744597991367,4.84806,1650.2,1649.8,0.8284]
[1744597991664,4.84806,1650.2,1649.9,0.0605977]
[1744597991830,4.84839,1650.1,1649.9,0.0605977]
[1744597992031,4.84839,1650.1,1649.7,0.06060156]
[1744597992232,4.84874,1650.0,1649.5,8.6782]
[1744597992459,4.97004743,1650.0,1649.6,0.06060597]
[1744597992659,0.61831217,1650.0,1649.2,4.33001566]
[1744597992865,4.84899,1649.9,1649.4,4.84998]
[1744597993066,4.84899,1649.9,1649.5,0.06060964]
[1744597993266,0.61831217,1650.0,1649.2,4.33001566]
[1744597993267,4.8495,1649.7,1649.2,9.18066566]
[1744597993569,4.85104,1649.2,1648.6,9.18244566]
[1744597993758,4.85104,1649.2,1648.7,4.8521]
[1744597993932,4.85104,1649.2,1648.3,4.33001566]
[1744597993933,0.0641841,1649.1,1648.3,4.33001566]
[1744597994141,4.85276,1648.6,1648.3,0.8284]
[1744597994335,0.753,1649.4,1648.9,4.85144]
[1744597994665,11.96715931,1649.7,1648.8,4.85197]
[1744597994852,11.96715931,1649.7,1649.3,4.85036]
[1744597994853,11.406,1649.7,1649.3,4.85036]
[1744597995044,4.84989,1649.6,1649.1,4.85083]
[1744597995245,16.25547,1649.7,1649.2,4.85079]
[1744597995442,11.406,1649.7,1649.0,7.85116]
[1744597995772,0.49700474,1650.0,1649.0,7.85116]
[1744597995773,5.34565474,1650.0,1649.3,0.55]
[1744597995957,9.69622,1650.2,1649.7,4.84932]
[1744597996149,4.84821,1650.1,1649.6,5.67801]
[1744597996335,9.83182671,1650.2,1649.7,4.8493]
[1744597996665,4.84802,1650.2,1649.7,4.84935]
[1744597996869,4.84839,1650.1,1649.6,6.59601857]
[1744597997075,4.84884,1649.9,1649.6,0.8284]
[1744597997539,4.84885,1649.9,1649.6,0.8284]
[1744597998244,4.84693,1650.6,1649.8,0.55]
[1744597998447,4.8457,1651.0,1650.2,4.33001566]
[1744597998448,0.753,1651.0,1650.2,4.33001566]
[1744597998632,0.13283851,1651.2,1650.5,3.50161566]
[1744597998838,0.13283851,1651.2,1650.8,5.6744]
[1744597999049,0.13283851,1651.2,1650.9,0.06055609]
[1744597999281,0.13283851,1651.2,1651.0,4.84538]
[1744597999444,0.13283851,1651.2,1651.1,8.94034007]
[1744597999767,0.13283851,1651.2,1651.1,6.76874007]
[1744597999968,0.13283851,1651.2,1651.1,9.158188]
[1744598000167,0.13283851,1651.2,1651.1,9.708188]
[1744598000482,0.13283851,1651.2,1651.1,9.95807072]
[1744598000833,0.05,1651.4,1651.3,5.39466]
[1744598001081,0.05,1651.4,1651.3,5.29197767]
[1744598001231,4.84492,1651.3,1651.1,0.1893447]
[1744598001650,0.05,1651.4,1651.2,0.1893447]
[1744598001884,0.05,1651.4,1651.3,0.06055156]
[1744598002041,0.05,1651.4,1651.2,0.1893447]
[1744598002248,0.05,1651.4,1651.3,5.39466]
[1744598002443,0.05,1651.4,1651.3,8.5840047]
[1744598002669,0.05,1651.4,1651.3,9.2796047]
[1744598002978,0.05,1651.4,1651.3,0.8849447]
[1744598003142,0.05,1651.4,1651.3,0.1893447]
[1744598003143,4.89437,1651.4,1651.3,0.1893447]
[1744598003342,5.868244,1651.4,1651.3,0.1893447]
[1744598003578,1.023874,1651.4,1650.8,4.84593]
[1744598003779,4.84485,1651.3,1650.9,0.06055243]
[1744598003996,4.89451,1651.4,1650.9,4.84566]
[1744598004145,0.05,1651.4,1650.9,4.84566]
[1744598004345,0.05,1651.4,1651.0,4.84535]
[1744598004662,0.05,1651.4,1651.3,4.84466]
[1744598004976,0.05,1651.4,1651.3,6.433164]
[1744598005179,0.05,1651.4,1651.1,0.18918285]
[1744598005477,4.89437,1651.4,1651.1,0.18918285]
[1744598005710,1e-05,1651.4,1651.2,0.88478285]
[1744598005990,4.4e-06,1652.4,1652.3,5.39173]
[1744598006158,0.4447632,1653.4,1652.5,3.0]
[1744598006344,0.4447632,1653.4,1652.6,0.55]
[1744598006548,0.4447632,1653.4,1653.2,4.83895]
[1744598006795,0.4447632,1653.4,1653.3,9.0844]
[1744598007082,0.4447632,1653.4,1653.3,10.16393558]
[1744598007256,5.2835132,1653.4,1652.8,5.53587]
[1744598007449,5.2835032,1653.4,1652.9,4.83997]
[1744598007651,5.2835032,1653.4,1653.0,3.0]
[1744598007652,0.11567797,1653.3,1653.0,3.0]
[1744598007847,0.11567797,1653.3,1653.2,5.38909]
[1744598008042,0.1730296,1653.4,1653.0,5.02868285]
[1744598008248,0.1730296,1653.4,1653.1,0.06047216]
[1744598008475,5.266761,1654.2,1653.0,5.38249463]
[1744598008476,0.430541,1654.2,1653.0,5.38249463]
[1744598008648,1e-06,1654.4,1654.3,10.02919178]
[1744598008857,0.05,1655.4,1654.9,4.73412]
[1744598009180,0.05,1655.4,1654.7,9.66908]
[1744598009382,4.83150227,1655.8,1654.9,5.19331178]
[1744598009678,4.83150227,1655.8,1655.7,4.83179]
[1744598009881,3.27e-06,1656.0,1655.9,5.5268]
[1744598010082,3.27e-06,1656.0,1655.9,0.6956]
[1744598010285,3.27e-06,1656.0,1655.4,3.6956]
[1744598010586,4.8312,1655.9,1655.4,0.6956]
[1744598010889,4.83179,1655.7,1654.5,5.88891178]
[1744598011092,4.83393,1655.0,1654.5,0.6956]
[1744598011245,0.48312,1655.8,1654.5,0.6956]
[1744598011453,0.48312,1655.8,1654.7,4.83471]
[1744598011777,0.8317,1655.9,1654.6,7.83492]
[1744598012091,0.8317,1655.9,1655.0,4.83357]
[1744598012306,4.83387,1655.0,1654.5,0.6956]
[1744598012516,13.266,1655.5,1654.6,7.89532078]
[1744598012682,3.27e-06,1656.0,1655.2,0.6956]
[1744598012888,4.83111327,1656.0,1655.2,0.6956]
[1744598013088,4.8323,1655.6,1654.8,5.52982]
[1744598013397,13.266,1655.9,1655.4,4.83239]
[1744598013603,4.83227,1655.6,1655.0,4.83368]
[1744598013802,0.7981,1655.7,1654.6,3.85909208]
[1744598013996,4.83322,1655.3,1654.6,0.85909208]
[1744598014181,52.6891,1655.7,1654.4,0.6956]
[1744598014383,4.8334,1655.2,1654.5,7.89544554]
[1744598014588,4.8334,1655.2,1654.5,4.83514]
[1744598014783,4.8337,1655.1,1654.6,4.835]
[1744598014999,4.8334,1655.2,1654.7,0.06041753]
[1744598015174,0.48334,1655.2,1654.7,0.06041753]
[1744598015519,4.83382,1655.1,1654.6,4.83481]
[1744598015723,56.72296,1655.7,1654.7,0.06041864]
[1744598016009,51.891,1655.7,1654.7,4.89509992]
[1744598016192,4.8324,1655.5,1654.2,0.6956]
[1744598016370,51.891,1655.7,1654.4,4.83558]
[1744598016576,4.83237,1655.5,1654.3,4.8356]
[1744598016803,4.83264,1655.5,1654.7,4.83451]
[1744598017017,10.02119,1655.6,1655.0,4.83378]
[1744598017209,5.834689,1655.5,1654.8,9.6685]
[1744598017415,4.96155851,1656.8,1655.9,4.8312]
[1744598017616,0.13283851,1656.8,1655.9,7.89157989]
[1744598017817,0.13283851,1656.8,1656.2,4.83033]
[1744598017976,0.13283851,1656.8,1656.0,4.83091]
[1744598017977,0.13283851,1656.8,1655.9,4.83094]
[1744598018312,0.13283851,1656.8,1656.2,4.83033]
[1744598018515,1.8e-07,1656.3,1656.2,8.796417]
[1744598018742,0.068,1657.4,1657.1,4.82757]
[1744598018883,0.068,1657.4,1656.2,6.26980642]
[1744598019083,4.89494,1657.4,1656.3,3.0]
[1744598019412,4.89494,1657.4,1655.7,3.0]
[1744598019413,0.2,1657.3,1655.7,3.0]
[1744598019579,4.82908,1656.7,1655.8,0.06036747]
[1744598019784,4.82861,1656.8,1656.3,4.82986]
[1744598019986,0.7981,1657.1,1655.9,0.6956]
[1744598020184,0.7981,1657.1,1656.3,4.82996]
[1744598020380,51.85,1657.0,1655.9,0.6956]
[1744598020584,10.01344,1656.9,1656.0,4.83091]
[1744598020782,4.82999,1656.4,1655.9,0.6956]
[1744598020979,4.82999,1656.4,1655.9,5.52678]
[1744598021240,5.185,1656.9,1655.9,0.6956]
[1744598021529,4.82901,1656.7,1656.2,4.83031]
[1744598021689,4.82975,1656.4,1655.9,5.52667]
[1744598021886,51.824,1656.9,1655.9,0.6956]
[1744598022132,0.068,1657.4,1656.8,0.55]
[1744598022326,0.068,1657.4,1656.8,5.37841]
[1744598022327,4.82726,1657.3,1656.8,5.37841]
[1744598022636,0.068,1657.4,1656.8,1.570718]
[1744598022788,4.82734,1657.3,1656.9,0.06032921]
[1744598022986,4.82785,1657.1,1656.6,4.82901]
[1744598023213,4.82925,1656.6,1656.1,7.83045]
[1744598023431,4.82925,1656.6,1656.1,4.83046]
[1744598023619,13.59,1656.8,1655.8,0.6956]
[1744598023785,0.7981,1656.6,1655.6,4.83194]
[1744598023986,4.83033,1656.3,1655.8,4.83133]
[1744598024187,0.12692045,1656.2,1655.4,0.6956]
[1744598024421,0.12692045,1656.2,1655.7,9.6634]
[1744598024422,4.83035,1656.2,1655.7,9.6634]
[1744598024622,0.12640747,1656.1,1655.8,4.89172765]
[1744598024829,4.83206,1655.7,1655.4,0.6956]
[1744598025008,4.83199,1655.7,1655.2,4.83299]
[1744598025329,4.83311,1655.3,1654.8,4.83415]
[1744598025623,5.6295,1655.9,1655.1,4.83334]
[1744598025624,4.83196,1655.7,1655.1,4.83334]
[1744598025790,4.83196,1655.7,1654.9,4.83412]
[1744598025991,5.62931,1655.9,1655.4,4.83252]
[1744598026223,4.83196,1655.7,1655.2,4.83299]
[1744598026428,4.83091,1656.0,1655.0,5.317082]
[1744598026429,4.83093,1656.0,1655.1,4.83354]
[1744598026594,4.83267,1655.4,1655.2,0.06039758]
[1744598026922,21.79532,1656.3,1654.7,4.83442]
[1744598026923,4.83326,1655.2,1654.7,4.83442]
[1744598027120,18.79734,1655.6,1655.0,4.83382]
[1744598027121,4.83211,1655.6,1655.0,4.83382]
[1744598027343,4.83163,1655.8,1655.3,4.83283]
[1744598027648,4.83152,1655.8,1655.0,0.06039303]
[1744598027832,4.83404,1655.0,1654.4,4.83554]
[1744598028149,13.965,1655.2,1654.1,4.88624]
[1744598028364,4.8358,1654.4,1654.1,0.05]
[1744598028646,4.83559,1654.4,1654.2,0.06044231]
[1744598028825,54.802,1655.4,1654.1,0.05]
[1744598029022,4.83617,1654.2,1654.1,0.05]
[1744598029213,18.80117,1654.2,1654.1,0.05]
[1744598030049,51.802,1654.4,1654.1,0.05]
[1744598030217,14.7699,1654.7,1654.2,4.83588]
[1744598030420,4.83565,1654.4,1654.1,0.05]
[1744598030741,14.7699,1654.7,1654.1,0.05]
[1744598030742,4.83552,1654.5,1654.1,0.05]
[1744598030933,4.83546,1654.5,1654.1,0.05]
[1744598031123,4.83582,1654.4,1654.1,0.05]
[1744598031447,4.83617,1654.2,1654.1,0.05]
[1744598031635,9.67211,1654.3,1654.1,0.05]
[1744598031833,4.83617,1654.2,1654.1,0.05]
[1744598032211,14.7699,1654.7,1654.2,4.83593]
[1744598032212,0.8009,1654.7,1654.2,4.83593]
[1744598032426,4.83412,1654.9,1654.3,0.06044632]
[1744598032624,4.83446,1654.8,1654.3,4.83559]
[1744598032850,4.83446,1654.8,1654.1,5.67998]
[1744598032851,18.80342,1654.8,1654.1,0.05]
[1744598033035,13.969,1654.8,1654.2,4.83617]
[1744598033239,13.969,1654.8,1654.3,4.8357]
[1744598033457,13.969,1654.8,1654.4,0.06043131]
[1744598033635,13.969,1654.8,1654.1,4.88644]
[1744598033852,6.23184,1654.7,1654.1,4.88644]
[1744598034052,4.83522,1654.6,1654.1,4.88644]
[1744598034273,5.63416,1655.2,1654.7,4.83467]
[1744598034431,4.83386,1655.0,1654.6,4.83497]
[1744598034628,5.63434,1655.2,1654.6,4.83495]
[1744598034830,4.83253,1655.5,1655.0,4.83363]
[1744598035029,0.8009,1655.6,1655.0,4.83363]
[1744598035223,0.8009,1655.6,1655.2,4.83304]
[1744598035419,4.83267,1655.4,1655.0,4.83362]
[1744598035641,4.83244,1655.5,1655.1,0.06040738]
[1744598035826,0.8009,1655.6,1655.1,0.06040738]
[1744598036027,51.826,1655.7,1655.3,4.83281]
[1744598036319,4.83283,1655.4,1654.9,4.8341]
[1744598036518,4.8323,1655.6,1654.8,3.0]
[1744598036716,51.826,1655.7,1655.0,5.38383]
[1744598036914,51.826,1655.7,1655.0,3.0]
[1744598037115,4.83279,1655.4,1654.9,5.02281751]
[1744598037421,9.66391,1655.7,1655.1,4.83328]
[1744598037621,20.99932,1656.0,1655.5,4.83222]
[1744598037817,4.83033,1656.2,1655.3,4.83279]
[1744598038052,0.8009,1655.8,1655.1,0.7937]
[1744598038256,4.83225,1655.6,1655.2,4.83325]
[1744598038553,4.83225,1655.6,1655.1,0.7937]
[1744598038554,4.83308,1655.3,1654.8,4.83441]
[1744598038853,4.83366,1655.1,1654.5,4.83528]
[1744598039026,4.83366,1655.1,1654.6,0.06041952]
[1744598039027,6.117806,1655.1,1654.6,0.06041952]
[1744598039228,4.83403,1655.0,1654.5,4.83504]
[1744598039432,4.83496,1654.7,1654.6,0.18878686]
[1744598039834,4.83451,1654.8,1654.6,0.18878686]
[1744598040068,13.968,1655.0,1654.7,4.83451]
[1744598040250,18.80189,1655.0,1654.6,9.85876686]
[1744598040451,13.968,1655.0,1654.3,8.62957]
[1744598040632,13.968,1655.0,1654.4,0.06042403]
[1744598040830,13.968,1655.0,1654.4,0.61042213]
[1744598041035,4.83312,1655.3,1654.7,4.83466]
[1744598041244,66.5829,1655.5,1655.1,4.83339]
[1744598041447,4.83222,1655.6,1655.2,4.89358121]
[1744598041769,4.83222,1655.6,1655.1,4.83339]
[1744598041770,4.83222,1655.6,1655.1,9.66679]
[1744598041967,4.83296,1655.3,1654.9,5.62766]
[1744598042135,4.83266,1655.4,1654.7,4.83466]
[1744598042340,4.83455,1654.8,1654.5,1.0]
[1744598042577,4.83337,1655.2,1654.7,4.83467]
[1744598042900,4.83263,1655.5,1655.0,4.83358]
[1744598043051,0.966471,1655.5,1654.6,0.7937]
[1744598043258,4.83309,1655.3,1654.8,4.83428]
[1744598043579,9.66577,1655.4,1654.9,4.83408]
[1744598043754,4.83297,1655.3,1654.9,4.83408]
[1744598043952,4.83238,1655.5,1655.0,0.0604109]
[1744598044253,0.8009,1655.7,1654.6,0.7937]
[1744598044254,0.8009,1655.7,1655.2,4.83322]
[1744598044575,0.005,1656.4,1656.3,4.83004]
[1744598044775,0.005,1656.4,1656.3,5.38004]
[1744598044941,0.005,1656.4,1656.3,8.56860075]
[1744598045448,0.068,1657.4,1656.7,3.0]
[1744598045773,0.068,1657.4,1657.0,4.82785]
[1744598046004,0.068,1657.4,1657.2,4.82739]
[1744598046185,0.068,1657.4,1657.2,4.82723]
[1744598046353,0.068,1657.4,1657.2,4.8272]
[1744598046562,0.068,1657.4,1657.3,7.88744492]
[1744598046759,0.068,1657.4,1657.3,8.37712]
[1744598047076,0.068,1657.4,1657.3,8.56568075]
[1744598047298,0.068,1657.4,1657.3,9.32368075]
[1744598047609,0.068,1657.4,1657.3,9.3839866]
[1744598047916,0.068,1657.4,1657.3,9.32368075]
[1744598048117,1e-05,1657.4,1657.3,11.2465411]
[1744598048412,1e-06,1657.7,1657.6,8.37625]
[1744598048612,1e-06,1657.7,1657.6,9.03665]
[1744598048815,1e-06,1657.7,1657.6,9.09694199]
[1744598048965,1e-06,1657.7,1657.6,9.09693987]
[1744598049168,1e-06,1657.7,1657.6,10.61755074]
[1744598049368,1e-06,1657.7,1657.6,4.39896075]
[1744598049613,1e-06,1657.7,1657.6,0.18856075]
[1744598049919,4.825961,1657.7,1657.6,0.18856075]
[1744598050212,1e-06,1657.7,1657.1,4.82751]
[1744598050416,1e-06,1657.7,1656.9,0.758]
[1744598050417,4.82723,1657.3,1656.9,0.758]
[1744598050617,0.482723,1657.3,1656.5,0.758]
[1744598050783,4.82666,1657.5,1656.2,6.97604832]
[1744598050982,0.8015,1657.6,1656.2,6.97604832]
[1744598050983,4.82923,1656.6,1656.2,6.97604832]
[1744598051187,0.8015,1656.8,1656.2,6.21804832]
[1744598051519,4.82904,1656.7,1656.2,6.21804832]
[1744598051816,4.8295,1656.5,1656.2,6.21804832]
[1744598052018,4.82912,1656.7,1656.0,4.83088]
[1744598052019,4.82927,1656.6,1656.0,4.83088]
[1744598052168,0.8015,1656.8,1655.7,0.758]
[1744598052371,4.8301,1656.3,1655.3,0.758]
[1744598052575,13.956,1656.3,1655.3,0.758]
[1744598052921,4.83107,1656.0,1655.3,5.59073]
[1744598053126,4.83256,1655.5,1655.1,6.26804832]
[1744598053415,4.8316,1655.8,1655.1,11.72811315]
[1744598053722,4.83106,1656.0,1655.4,4.83251]
[1744598054015,4.83091,1656.0,1655.1,0.67680483]
[1744598054226,4.8326,1655.5,1655.1,0.05]
[1744598054435,13.897,1655.6,1655.1,0.05]
[1744598054904,4.83325,1655.2,1655.1,0.05]
[1744598055778,4.83299,1655.3,1655.1,0.05]
[1744598055979,18.72934,1655.6,1655.1,0.05]
[1744598056305,4.8315,1655.8,1655.2,9.66609]
[1744598056510,0.8015,1656.1,1655.2,0.55]
[1744598056815,4.83145,1655.9,1655.3,4.83276]
[1744598057110,0.8015,1656.1,1655.3,0.783276]
[1744598057275,4.83234,1655.6,1655.1,5.371877]
[1744598057475,4.8331,1655.3,1655.1,0.05]
[1744598057794,4.83201,1655.7,1655.2,4.83325]
[1744598058110,4.83266,1655.4,1655.1,0.05]
[1744598058415,18.73153,1655.5,1655.1,0.05]
[1744598058570,13.899,1655.5,1655.2,4.8331]
[1744598058777,4.83279,1655.4,1655.1,0.05]
[1744598059014,4.83319,1655.3,1655.1,0.05]
[1744598059321,4.83267,1655.4,1655.1,0.05]
[1744598059672,0.8015,1655.7,1655.3,4.83275]
[1744598059877,4.83165,1655.8,1655.4,0.0603964]
[1744598060078,19.53886,1656.0,1655.5,4.83223]
[1744598060279,4.83231,1655.6,1655.3,0.483275]
[1744598060583,14.7079,1656.0,1655.1,0.05]
[1744598060800,0.8089,1656.0,1655.2,4.83306]